bitfinex-derivatives/quotes_BTCF0:USTF0_20240829
["timestamp","ask_amount","ask_price","bid_price","bid_amount"]
[1724961623899,0.445097,59299.0,59298.0,0.002]
[1724961624298,0.3608,59299.0,59298.0,0.001]
[1724961624506,0.084293,59302.0,59297.0,0.084298]
[1724961624700,0.001,59300.0,59299.0,0.3608]
[1724961624896,0.001,59300.0,59299.0,0.805096]
[1724961625207,0.03062312,59305.0,59304.0,0.08429]
[1724961625403,0.03062312,59305.0,59304.0,0.44509]
[1724961625599,0.00025296,59305.0,59304.0,0.44509]
[1724961627206,0.00125296,59305.0,59304.0,0.44609]
[1724961628202,0.00225296,59305.0,59304.0,0.44609]
[1724961628410,0.00225296,59305.0,59304.0,0.44709]
[1724961628909,0.00125296,59305.0,59304.0,0.44609]
[1724961629213,0.00325296,59305.0,59304.0,0.44709]
[1724961629396,0.00225296,59305.0,59304.0,0.44609]
[1724961629703,0.00225296,59305.0,59304.0,0.44709]
[1724961630609,0.00225296,59305.0,59304.0,0.44609]
[1724961630807,0.00225296,59305.0,59304.0,0.44709]
[1724961630808,0.00125296,59305.0,59304.0,0.44709]
[1724961631016,0.00125296,59305.0,59304.0,0.44609]
[1724961631203,0.00125296,59305.0,59304.0,0.44709]
[1724961632096,0.00025296,59305.0,59304.0,0.44609]
[1724961632301,0.00125296,59305.0,59304.0,0.44709]
[1724961632615,0.00125296,59305.0,59304.0,0.44609]
[1724961632908,0.01265367,59320.0,59304.0,0.9628]
[1724961633106,0.04353223,59320.0,59310.0,0.36]
[1724961633300,0.08427,59318.0,59315.0,0.084274]
[1724961633497,0.08427,59318.0,59317.0,0.3608]
[1724961635317,0.08527,59318.0,59317.0,0.3618]
[1724961635510,0.08527,59318.0,59317.0,0.446071]
[1724961635709,0.001,59318.0,59317.0,0.446071]
[1724961636516,0.001,59318.0,59317.0,0.447071]
[1724961638304,0.001,59318.0,59317.0,0.3628]
[1724961638708,0.47683746,59318.0,59317.0,0.002]
[1724961638907,0.44607,59318.0,59317.0,0.002]
[1724961639909,0.53034,59318.0,59317.0,0.002]
[1724961641018,0.08527,59318.0,59317.0,0.3628]
[1724961641215,0.09792277,59318.0,59317.0,0.3628]
[1724961641409,0.08527,59318.0,59317.0,0.3628]
[1724961642709,0.08527,59318.0,59317.0,0.002]
[1724961643107,0.08527,59318.0,59317.0,0.001]
[1724961643313,0.08527,59318.0,59317.0,0.002]
[1724961643913,0.08427,59318.0,59317.0,0.002]
[1724961644417,0.08427,59318.0,59317.0,0.001]
[1724961644605,0.08427,59318.0,59317.0,0.002]
[1724961645308,0.16854,59318.0,59317.0,0.002]
[1724961646717,0.16854,59318.0,59305.0,0.3608]
[1724961646718,0.084287,59306.0,59305.0,0.3608]
[1724961647015,0.3608,59308.0,59296.0,0.1355]
[1724961647316,0.084291,59304.0,59301.0,0.084294]
[1724961647515,0.084291,59304.0,59299.0,0.7208]
[1724961647721,0.00025296,59307.0,59299.0,1.0816]
[1724961648017,0.00025296,59307.0,59306.0,0.805087]
[1724961648521,0.02990832,59307.0,59306.0,0.805087]
[1724961648712,0.00025296,59307.0,59306.0,0.805087]
[1724961649215,0.14915297,59327.0,59316.0,0.084272]
[1724961649412,0.14915297,59327.0,59319.0,0.3608]
[1724961649617,0.084267,59320.0,59319.0,0.445068]
[1724961650717,0.11429494,59324.0,59319.0,0.445068]
[1724961650917,0.11429494,59324.0,59323.0,0.084263]
[1724961650918,0.03003194,59324.0,59323.0,0.084263]
[1724961651121,0.00025139,59325.0,59324.0,0.084261]
[1724961651314,0.084256,59328.0,59322.0,0.36]
[1724961651508,0.084256,59328.0,59327.0,0.3608]
[1724961652321,0.084266,59321.0,59319.0,0.002]
[1724961652821,0.084266,59321.0,59319.0,0.001]
[1724961653008,0.084267,59320.0,59319.0,0.001]
[1724961653517,0.084266,59321.0,59316.0,0.3608]
[1724961653921,0.3608,59323.0,59316.0,0.3608]
[1724961654117,0.001,59320.0,59319.0,0.001]
[1724961654618,0.001,59321.0,59319.0,0.001]
[1724961654823,0.002,59321.0,59320.0,0.084267]
[1724961655323,0.001,59321.0,59320.0,0.084267]
[1724961655927,0.001,59321.0,59319.0,0.001]
[1724961656232,0.086266,59321.0,59320.0,0.001]
[1724961656414,0.221666,59321.0,59320.0,0.001]
[1724961656619,0.220666,59321.0,59320.0,0.001]
[1724961657114,0.221666,59321.0,59320.0,0.001]
[1724961657525,0.002,59321.0,59320.0,0.001]
[1724961657718,0.001,59321.0,59319.0,0.001]
[1724961657924,0.002,59321.0,59320.0,0.001]
[1724961658116,0.002,59321.0,59320.0,0.085267]
[1724961658521,0.001,59321.0,59320.0,0.086267]
[1724961658728,0.002,59321.0,59320.0,0.447067]
[1724961659325,0.002,59321.0,59320.0,0.3628]
[1724961659633,0.086266,59321.0,59320.0,0.002]
[1724961659930,0.085266,59321.0,59320.0,0.001]
[1724961660117,0.086266,59321.0,59320.0,0.001]
[1724961660527,0.086266,59321.0,59320.0,0.002]
[1724961661616,0.002,59321.0,59320.0,0.086267]
[1724961661822,0.002,59321.0,59320.0,0.002]
[1724961662033,0.002,59321.0,59320.0,0.086267]
[1724961663836,0.086266,59321.0,59320.0,0.002]
[1724961664128,0.002,59321.0,59320.0,0.3628]
[1724961664329,0.002,59321.0,59320.0,0.447067]
[1724961667338,0.002,59321.0,59320.0,0.952787]
[1724961669527,0.03001582,59324.0,59320.0,1.552787]
[1724961669732,0.084251,59332.0,59331.0,0.084251]
[1724961669931,0.084251,59332.0,59320.0,0.447067]
[1724961669932,0.084245,59336.0,59335.0,0.084245]
[1724961670331,0.02991242,59340.0,59335.0,0.3608]
[1724961670625,0.23348497,59345.0,59331.0,0.4309]
[1724961670626,0.08424,59339.0,59338.0,0.29]
[1724961671137,0.084245,59336.0,59333.0,0.29]
[1724961671328,0.084245,59336.0,59335.0,0.001]
[1724961671329,0.085245,59336.0,59335.0,0.001]
[1724961671536,0.085245,59336.0,59335.0,0.3618]
[1724961671837,0.001,59336.0,59335.0,0.447046]
[1724961672840,0.001,59340.0,59335.0,0.3618]
[1724961673132,0.001,59340.0,59338.0,0.291]
[1724961673334,0.001,59340.0,59339.0,0.08424]
[1724961673535,0.084231,59346.0,59338.0,0.29]
[1724961673734,0.084231,59346.0,59345.0,0.29]
[1724961674126,0.084228,59348.0,59346.0,0.084229]
[1724961674327,0.08422,59354.0,59345.0,0.29]
[1724961674529,0.08422,59354.0,59353.0,0.29]
[1724961675123,0.03007064,59355.0,59354.0,0.084219]
[1724961675330,0.084199,59368.0,59354.0,0.50544]
[1724961675523,0.084199,59368.0,59367.0,0.6508]
[1724961675734,0.11409657,59368.0,59367.0,0.6508]
[1724961675931,0.11409657,59368.0,59355.0,0.00025275]
[1724961675932,1.78601757,59368.0,59355.0,0.00025275]
[1724961676129,0.084213,59359.0,59355.0,0.00025275]
[1724961676326,0.40409757,59368.0,59355.0,0.00025275]
[1724961676327,0.02989757,59368.0,59358.0,0.6508]
[1724961676527,0.084193,59372.0,59367.0,0.29]
[1724961676725,0.084201,59367.0,59358.0,0.29]
[1724961676935,0.084197,59370.0,59360.0,0.3608]
[1724961677136,0.084197,59370.0,59355.0,0.00025275]
[1724961677327,0.084198,59369.0,59362.0,0.29]
[1724961677529,0.084198,59369.0,59364.0,0.3608]
[1724961677728,0.3608,59372.0,59364.0,0.3608]
[1724961678341,0.3608,59372.0,59364.0,0.445004]
[1724961678533,0.03031657,59374.0,59368.0,0.36]
[1724961678727,0.084181,59381.0,59370.0,0.3608]
[1724961678933,0.084181,59381.0,59377.0,0.3608]
[1724961679135,0.16800357,59379.0,59377.0,0.3608]
[1724961679639,0.16796357,59379.0,59377.0,0.3608]
[1724961679836,0.03100357,59379.0,59377.0,0.3608]
[1724961680024,0.50524,59379.0,59375.0,0.3608]
[1724961680230,0.084183,59379.0,59375.0,0.3608]
[1724961680632,0.03052407,59381.0,59375.0,0.3608]
[1724961680830,0.1351,59382.0,59375.0,0.3608]
[1724961681026,0.084185,59378.0,59377.0,0.001]
[1724961681243,0.084185,59378.0,59377.0,0.002]
[1724961681444,1.189425,59378.0,59377.0,0.002]
[1724961681647,1.46604,59378.0,59369.0,0.00025275]
[1724961681831,0.084196,59370.0,59369.0,0.00025275]
[1724961682031,0.444996,59370.0,59369.0,0.00025275]
[1724961682342,0.950316,59370.0,59369.0,0.00025275]
[1724961682529,0.50532,59370.0,59369.0,0.00025275]
[1724961682938,0.589516,59370.0,59369.0,0.00025275]
[1724961683247,0.084196,59370.0,59369.0,0.00025275]
[1724961683454,0.589516,59370.0,59369.0,0.00025275]
[1724961683844,0.085196,59370.0,59369.0,0.00125275]
[1724961684139,0.590516,59370.0,59369.0,0.00125275]
[1724961684536,0.591516,59370.0,59369.0,0.00225275]
[1724961685233,0.592516,59370.0,59369.0,0.00225275]
[1724961686546,0.11822375,59370.0,59369.0,0.00225275]
[1724961687239,0.11722375,59370.0,59369.0,0.00225275]
[1724961687439,0.62254375,59370.0,59369.0,0.00225275]
[1724961687644,0.62154375,59370.0,59369.0,0.00125275]
[1724961687844,0.62254375,59370.0,59369.0,0.00225275]
[1724961688033,0.11722375,59370.0,59369.0,0.00225275]
[1724961689637,0.70673975,59370.0,59369.0,0.00225275]
[1724961689840,1.22254375,59370.0,59354.0,0.3608]
[1724961690042,0.03302775,59370.0,59363.0,0.36]
[1724961690548,0.084202,59366.0,59363.0,0.36]
[1724961691445,0.03227977,59370.0,59365.0,0.3608]
[1724961691649,0.03327977,59370.0,59369.0,0.36]
[1724961692045,0.03227977,59370.0,59369.0,0.444197]
[1724961692841,0.5042,59389.0,59374.0,0.08419]
[1724961693040,0.084183,59380.0,59377.0,0.36]
[1724961693550,0.084183,59380.0,59371.0,0.3608]
[1724961693551,0.3608,59379.0,59371.0,0.36]
[1724961693750,0.084193,59372.0,59369.0,0.00125275]
[1724961694053,0.001,59370.0,59369.0,0.00225275]
[1724961694247,0.004,59370.0,59369.0,0.00225275]
[1724961694544,0.003,59370.0,59369.0,0.00125275]
[1724961694750,0.084195,59371.0,59369.0,0.00025275]
[1724961694952,0.003,59372.0,59369.0,0.00125275]
[1724961695253,0.003,59372.0,59370.0,0.36]
[1724961695443,0.03187656,59379.0,59374.0,0.08419]
[1724961695745,0.03187656,59379.0,59374.0,0.44499]
[1724961695939,0.03187656,59379.0,59378.0,0.084185]
[1724961696135,0.084171,59388.0,59381.0,0.08418]
[1724961696342,0.084172,59387.0,59383.0,0.3608]
[1724961697253,0.084175,59386.0,59383.0,0.3608]
[1724961697451,0.084176,59384.0,59383.0,0.3608]
[1724961697948,0.084176,59384.0,59383.0,0.3628]
[1724961699143,0.084176,59384.0,59383.0,0.3618]
[1724961699451,0.085176,59384.0,59383.0,0.3628]
[1724961700860,0.001,59384.0,59383.0,0.3628]
[1724961701245,0.03206087,59384.0,59383.0,0.3628]
[1724961701445,0.085176,59384.0,59383.0,0.002]
[1724961702757,0.085176,59384.0,59383.0,0.3628]
[1724961703657,0.001,59384.0,59383.0,0.3628]
[1724961704160,0.001,59384.0,59383.0,0.446978]
[1724961705944,0.001,59384.0,59383.0,0.806978]
[1724961706959,0.001,59384.0,59383.0,0.7228]
[1724961707149,0.001,59384.0,59383.0,0.002]
[1724961707345,0.085176,59384.0,59383.0,0.002]
[1724961708756,0.001,59384.0,59383.0,0.362]
[1724961709251,0.001,59384.0,59383.0,0.002]
[1724961709551,0.001,59384.0,59383.0,0.086178]
[1724961709756,0.08415,59403.0,59384.0,0.50516]
[1724961709950,0.084149,59403.0,59402.0,0.3608]
[1724961710257,0.4137,59412.0,59402.0,0.3608]
[1724961710653,0.084144,59407.0,59402.0,0.3608]
[1724961710852,0.44353308,59412.0,59402.0,0.3608]
[1724961711355,0.084142,59408.0,59407.0,0.3608]
[1724961711749,0.084149,59403.0,59402.0,0.00088]
[1724961711950,0.084139,59410.0,59397.0,0.00025251]
[1724961711951,0.084153,59401.0,59397.0,0.00025251]
[1724961712255,0.3608,59411.0,59397.0,0.08440951]
[1724961712446,0.3608,59411.0,59397.0,0.36105251]
[1724961712644,0.084146,59406.0,59402.0,0.3608]
[1724961712859,0.084146,59406.0,59404.0,0.3608]
[1724961713856,0.02983308,59412.0,59404.0,0.3608]
[1724961713857,0.084146,59405.0,59404.0,0.3608]
[1724961714061,0.084156,59398.0,59397.0,0.00025251]
[1724961714255,0.168312,59398.0,59397.0,0.00025251]
[1724961714445,0.084156,59398.0,59397.0,0.00025251]
[1724961715861,0.11510839,59398.0,59397.0,0.00125251]
[1724961716557,0.53603239,59398.0,59386.0,0.3608]
[1724961716758,0.03095239,59398.0,59386.0,0.3608]
[1724961717062,0.084172,59387.0,59386.0,0.3608]
[1724961717961,0.084179,59382.0,59381.0,0.00025251]
[1724961718955,0.083179,59382.0,59381.0,0.00025251]
[1724961719361,0.083179,59382.0,59381.0,0.00125251]
[1724961719964,0.084179,59382.0,59381.0,0.00125251]
[1724961720975,0.087179,59382.0,59381.0,0.00125251]
[1724961721767,0.086179,59382.0,59381.0,0.00125251]
[1724961722070,0.087179,59382.0,59381.0,0.00225251]
[1724961722963,0.004,59382.0,59381.0,0.00225251]
[1724961723359,0.003,59382.0,59381.0,0.00125251]
[1724961723563,0.088179,59382.0,59381.0,0.00225251]
[1724961724165,0.087179,59382.0,59381.0,0.00225251]
[1724961725869,0.086179,59382.0,59381.0,0.00125251]
[1724961726171,0.087179,59382.0,59381.0,0.13445251]
[1724961727454,0.003,59382.0,59381.0,0.13445251]
[1724961728072,0.001,59382.0,59381.0,0.13345251]
[1724961728265,0.003,59382.0,59381.0,0.13445251]
[1724961728454,0.087179,59382.0,59381.0,0.13445251]
[1724961728658,0.086179,59382.0,59381.0,0.13345251]
[1724961728859,0.003,59382.0,59381.0,0.21863251]
[1724961729269,0.003,59382.0,59381.0,0.35753251]
[1724961730470,0.03076642,59387.0,59386.0,0.084173]
[1724961730661,0.14948784,59399.0,59386.0,0.6508]
[1724961730865,0.14948784,59399.0,59398.0,0.6508]
[1724961730866,0.084155,59399.0,59398.0,0.6508]
[1724961732073,0.084162,59394.0,59393.0,0.3608]
[1724961733377,0.084162,59394.0,59393.0,0.6508]
[1724961734261,0.084162,59394.0,59393.0,1.0116]
[1724961734468,0.11408566,59399.0,59393.0,1.0116]
[1724961734676,0.11408566,59399.0,59398.0,0.3618]
[1724961734973,0.02993066,59399.0,59398.0,0.445956]
[1724961735178,0.29283592,59406.0,59398.0,0.3608]
[1724961735675,0.084155,59400.0,59398.0,0.3608]
[1724961736177,0.084155,59399.0,59398.0,0.001]
[1724961736472,0.044155,59399.0,59398.0,0.002]
[1724961736865,0.044155,59399.0,59398.0,0.3628]
[1724961737181,0.084149,59404.0,59398.0,0.6528]
[1724961737371,0.01263592,59407.0,59403.0,0.29]
[1724961737874,0.084148,59404.0,59403.0,0.29]
[1724961738074,0.084143,59408.0,59403.0,0.29]
[1724961738075,0.03007258,59407.0,59403.0,0.29]
[1724961738279,0.084143,59408.0,59403.0,0.29]
[1724961738280,0.084143,59408.0,59403.0,0.374149]
[1724961738579,0.084143,59408.0,59406.0,0.3608]
[1724961739067,0.084137,59412.0,59406.0,0.3608]
[1724961739264,0.03043647,59412.0,59411.0,0.444937]
[1724961739570,0.00088,59418.0,59411.0,0.444937]
[1724961739571,0.084123,59422.0,59415.0,0.084132]
[1724961739885,0.084123,59422.0,59416.0,0.29]
[1724961740175,0.01263233,59424.0,59418.0,0.084127]
[1724961740382,0.01263233,59424.0,59421.0,0.29]
[1724961740868,0.3608,59425.0,59421.0,0.29]
[1724961741266,0.01263233,59433.0,59421.0,0.29]
[1724961741267,0.01263233,59433.0,59425.0,0.084118]
[1724961741468,0.3608,59438.0,59429.0,0.6508]
[1724961741674,0.084107,59433.0,59429.0,0.6508]
[1724961742178,0.3608,59438.0,59429.0,0.6508]
[1724961742179,0.084101,59437.0,59429.0,0.6508]
[1724961742477,0.01263233,59443.0,59434.0,0.3608]
[1724961742478,0.084103,59436.0,59434.0,0.3608]
[1724961743969,0.084103,59436.0,59435.0,0.3608]
[1724961745176,0.084104,59435.0,59434.0,0.001]
[1724961745370,0.084106,59434.0,59429.0,0.3618]
[1724961745575,0.084107,59433.0,59429.0,0.3608]
[1724961747082,0.0841,59438.0,59432.0,0.29]
[1724961747278,0.0841,59438.0,59436.0,0.3608]
[1724961747874,0.0841,59438.0,59432.0,0.374108]
[1724961748268,0.0841,59438.0,59432.0,0.375108]
[1724961748669,0.0841,59438.0,59432.0,0.001]
[1724961748979,0.084101,59437.0,59436.0,0.001]
[1724961750278,0.084107,59433.0,59432.0,0.001]
[1724961750486,0.084107,59433.0,59432.0,0.002]
[1724961751983,0.08411,59431.0,59429.0,0.3608]
[1724961752279,0.08311,59431.0,59429.0,0.3608]
[1724961753682,0.08211,59431.0,59429.0,0.3608]
[1724961754089,0.001,59433.0,59429.0,0.444911]
[1724961754279,0.085107,59433.0,59432.0,0.29]
[1724961754771,0.084107,59433.0,59432.0,0.6508]
[1724961755579,0.086107,59433.0,59432.0,0.6518]
[1724961756476,0.002,59433.0,59432.0,0.735908]
[1724961758082,0.084102,59437.0,59432.0,0.734908]
[1724961758285,0.004,59433.0,59432.0,0.736908]
[1724961758680,0.002,59433.0,59432.0,0.736908]
[1724961758872,0.004,59433.0,59432.0,0.736908]
[1724961759279,0.088107,59433.0,59432.0,0.6528]
[1724961760181,0.086107,59433.0,59432.0,0.6528]
[1724961760579,0.002,59433.0,59432.0,0.6528]
[1724961760984,0.002,59433.0,59432.0,0.877608]
[1724961761183,0.004,59433.0,59432.0,0.878608]
[1724961762984,0.088107,59433.0,59432.0,0.878608]
[1724961763688,0.088107,59433.0,59432.0,0.6528]
[1724961764786,0.086107,59433.0,59432.0,0.6518]
[1724961764988,0.087107,59433.0,59432.0,0.6528]
[1724961765484,0.087107,59433.0,59432.0,0.6518]
[1724961765485,0.085107,59433.0,59432.0,0.6518]
[1724961765786,0.087107,59433.0,59432.0,0.6528]
[1724961766383,0.03066909,59438.0,59432.0,1.51836]
[1724961766582,0.084096,59441.0,59437.0,0.7349]
[1724961766879,0.084094,59443.0,59439.0,0.3608]
[1724961767086,0.084094,59443.0,59442.0,0.29]
[1724961767783,0.084088,59447.0,59442.0,0.29]
[1724961767987,0.084088,59447.0,59446.0,0.3608]
[1724961769690,0.11403887,59447.0,59446.0,0.3608]
[1724961770190,0.50114001,59457.0,59447.0,0.084087]
[1724961770191,0.00104001,59457.0,59447.0,0.084087]
[1724961770379,0.3242,59469.0,59456.0,0.3608]
[1724961770380,0.084071,59459.0,59456.0,0.3608]
[1724961770577,0.084071,59459.0,59458.0,0.29]
[1724961771594,0.084071,59459.0,59458.0,0.291]
[1724961771982,0.084071,59459.0,59458.0,0.292]
[1724961773595,0.084071,59459.0,59458.0,0.6528]
[1724961774482,0.084071,59459.0,59458.0,0.292]
[1724961774680,0.084071,59459.0,59458.0,0.002]
[1724961776292,0.084071,59459.0,59458.0,0.3628]
[1724961778896,0.02954183,59460.0,59458.0,0.3628]
[1724961779196,0.084067,59462.0,59458.0,0.3628]
[1724961779392,0.08407,59459.0,59458.0,0.3628]
[1724961780199,0.08407,59459.0,59458.0,0.3618]
[1724961780386,0.084079,59453.0,59452.0,0.3610523]
[1724961781098,0.084079,59453.0,59452.0,0.6510523]
[1724961781297,0.08407,59459.0,59452.0,0.6510523]
[1724961781298,0.084071,59458.0,59452.0,0.6510523]
[1724961781597,0.084071,59458.0,59457.0,0.3608]
[1724961782997,0.11463336,59458.0,59457.0,0.3608]
[1724961783399,0.11563336,59458.0,59457.0,0.3608]
[1724961783596,0.11663336,59458.0,59457.0,0.3618]
[1724961783992,0.11563336,59458.0,59457.0,0.3618]
[1724961784199,0.11763336,59458.0,59457.0,0.3628]
[1724961784605,0.11759336,59458.0,59457.0,0.3628]
[1724961785602,0.20166636,59458.0,59457.0,0.002]
[1724961789496,0.11759336,59458.0,59457.0,0.002]
[1724961790107,0.11759336,59458.0,59457.0,0.3628]
[1724961793907,0.47839336,59458.0,59457.0,0.002]
[1724961794107,0.11759336,59458.0,59457.0,0.002]
[1724961794416,0.20166436,59458.0,59457.0,0.002]
[1724961795306,0.11759336,59458.0,59457.0,0.002]
[1724961796215,0.20166436,59458.0,59457.0,0.002]
[1724961797511,0.20166436,59458.0,59452.0,0.0002523]
[1724961797512,0.168158,59453.0,59452.0,0.0002523]
[1724961797712,0.528958,59453.0,59452.0,0.0002523]
[1724961798214,0.528958,59453.0,59438.0,0.3608]
[1724961798215,0.084098,59439.0,59438.0,0.3608]
[1724961799206,0.083098,59439.0,59438.0,0.3608]
[1724961799507,0.082098,59439.0,59438.0,0.3608]
[1724961799906,0.085098,59439.0,59438.0,0.3608]
[1724961800514,0.0841,59438.0,59433.0,0.0002523]
[1724961800703,0.39419965,59439.0,59433.0,0.0002523]
[1724961801015,0.39419965,59439.0,59435.0,0.29]
[1724961801016,0.03339965,59439.0,59435.0,0.29]
[1724961801212,0.03339965,59439.0,59438.0,0.4449]
[1724961802005,0.03239965,59439.0,59438.0,0.94962]
[1724961802203,0.03239965,59439.0,59438.0,1.54962]
[1724961802611,0.03239965,59439.0,59438.0,0.4449]
[1724961803012,0.03239965,59439.0,59438.0,1.54962]
[1724961803213,0.00025159,59441.0,59440.0,0.084097]
[1724961803415,0.00025159,59441.0,59440.0,0.374097]
[1724961803811,0.01262685,59453.0,59440.0,0.6508]
[1724961804117,0.084085,59449.0,59447.0,0.3608]
[1724961806005,0.087085,59449.0,59447.0,0.3618]
[1724961806618,0.090085,59449.0,59447.0,0.3628]
[1724961807122,0.006,59449.0,59447.0,0.3628]
[1724961807316,0.006,59449.0,59448.0,0.084086]
[1724961808019,0.006,59449.0,59448.0,0.228386]
[1724961808418,0.003,59449.0,59448.0,0.228386]
[1724961808723,0.006,59449.0,59448.0,0.229386]
[1724961808906,0.0367899,59449.0,59448.0,0.229386]
[1724961809107,0.006,59449.0,59448.0,0.229386]
[1724961809518,0.003,59449.0,59448.0,0.229386]
[1724961809720,0.006,59449.0,59448.0,0.230386]
[1724961810219,0.084074,59457.0,59456.0,0.084074]
[1724961810422,0.084063,59465.0,59457.0,0.084072]
[1724961810423,0.084068,59461.0,59457.0,0.084072]
[1724961810627,0.084063,59465.0,59457.0,0.084072]
[1724961811124,0.168146,59457.0,59456.0,0.00092]
[1724961811312,0.084077,59454.0,59453.0,0.0002523]
[1724961811622,0.168154,59454.0,59453.0,0.0002523]
[1724961811926,0.167154,59454.0,59453.0,0.0002523]
[1724961812519,0.167154,59454.0,59446.0,0.3213]
[1724961812520,0.084087,59447.0,59446.0,0.3213]
[1724961812712,0.083087,59447.0,59446.0,0.3213]
[1724961812917,0.082087,59447.0,59446.0,0.3213]
[1724961813824,0.084088,59446.0,59445.0,0.3608]
[1724961814421,0.084094,59442.0,59441.0,0.0002523]
[1724961814917,0.083094,59442.0,59441.0,0.0002523]
[1724961815318,0.082094,59442.0,59441.0,0.0002523]
[1724961815531,0.082094,59442.0,59441.0,0.0012523]
[1724961815532,0.083094,59442.0,59441.0,0.0012523]
[1724961816126,0.085094,59442.0,59441.0,0.0012523]
[1724961818919,0.11492611,59442.0,59441.0,0.0012523]
[1724961819521,0.61960611,59442.0,59441.0,0.0012523]
[1724961819720,0.11492611,59442.0,59441.0,0.0012523]
[1724961819920,0.61960611,59442.0,59441.0,0.0012523]
[1724961820428,0.11492611,59442.0,59441.0,0.0012523]
[1724961823632,0.19902011,59442.0,59441.0,0.0012523]
[1724961834135,0.084117,59426.0,59424.0,0.3608]
[1724961834338,0.084118,59425.0,59424.0,0.3608]
[1724961834531,0.3608,59426.0,59419.0,0.1374]
[1724961834835,0.3608,59421.0,59419.0,0.1374]
[1724961835035,0.084125,59420.0,59419.0,0.1374]
[1724961835235,0.084128,59419.0,59415.0,0.3608]
[1724961835434,0.084128,59418.0,59415.0,0.3608]
[1724961835838,0.082128,59418.0,59415.0,0.3608]
[1724961836441,0.068128,59418.0,59415.0,0.3608]
[1724961837042,0.068128,59418.0,59415.0,0.3668]
[1724961837343,0.069128,59418.0,59415.0,0.3758]
[1724961838546,0.070128,59418.0,59415.0,0.3758]
[1724961840236,0.084131,59416.0,59415.0,0.3758]
[1724961840938,0.084131,59416.0,59415.0,0.015]
[1724961841141,0.444931,59416.0,59415.0,0.015]
[1724961841448,0.444931,59416.0,59404.0,0.4231]
[1724961841449,0.084146,59405.0,59399.0,0.1314]
[1724961841742,0.084146,59405.0,59397.0,0.3608]
[1724961841743,0.084155,59399.0,59397.0,0.3608]
[1724961841943,0.734944,59407.0,59397.0,0.3608]
[1724961842138,0.01262685,59406.0,59397.0,0.3608]
[1724961842346,0.084154,59400.0,59397.0,0.3608]
[1724961842739,0.00025252,59404.0,59397.0,0.3608]
[1724961842940,0.084153,59401.0,59397.0,0.3608]
[1724961843146,0.084154,59400.0,59397.0,0.3618]
[1724961843446,0.444956,59398.0,59397.0,0.001]
[1724961843750,0.444956,59398.0,59397.0,0.002]
[1724961844137,0.01,59400.0,59397.0,0.002]
[1724961844445,0.00025252,59404.0,59397.0,0.291]
[1724961844648,0.00025252,59404.0,59403.0,0.3608]
[1724961844941,0.00025252,59404.0,59403.0,0.86584]
[1724961845142,0.00025252,59404.0,59403.0,0.3608]
[1724961845341,0.00025252,59404.0,59403.0,0.949989]
[1724961845850,0.408324,59421.0,59403.0,1.46584]
[1724961846043,0.084124,59421.0,59417.0,0.3608]
[1724961846246,0.3608,59425.0,59417.0,0.3608]
[1724961846446,0.08412,59424.0,59417.0,0.3608]
[1724961846836,0.08412,59424.0,59417.0,0.4975]
[1724961847444,0.08412,59424.0,59417.0,0.4985]
[1724961847846,0.08412,59424.0,59417.0,0.582629]
[1724961848338,0.014,59424.0,59419.0,0.084126]
[1724961848742,0.023,59424.0,59419.0,0.084126]
[1724961848938,0.023,59424.0,59417.0,0.4995]
[1724961848939,0.023,59424.0,59422.0,0.3608]
[1724961849254,0.023,59424.0,59423.0,0.084121]
[1724961850143,0.009,59424.0,59423.0,0.084121]
[1724961850347,0.023,59424.0,59423.0,0.084121]
[1724961851052,0.022,59424.0,59423.0,0.085121]
[1724961851247,0.022,59424.0,59423.0,0.001]
[1724961851451,0.10612,59424.0,59423.0,0.001]
[1724961851650,0.022,59424.0,59423.0,0.002]
[1724961851850,0.022,59424.0,59423.0,0.446921]
[1724961852351,0.022,59424.0,59423.0,0.3628]
[1724961853052,0.10612,59424.0,59423.0,0.002]
[1724961853447,0.09212,59424.0,59423.0,0.001]
[1724961853647,0.10412,59424.0,59423.0,0.002]
[1724961854251,0.09212,59424.0,59423.0,0.001]
[1724961854451,0.10612,59424.0,59423.0,0.002]
[1724961857153,0.022,59424.0,59423.0,0.002]
[1724961857963,0.022,59424.0,59423.0,0.353221]
[1724961858157,0.022,59424.0,59423.0,0.2691]
[1724961859355,0.022,59424.0,59423.0,0.353221]
[1724961861069,0.084096,59441.0,59424.0,0.084119]
[1724961861249,0.01262838,59443.0,59435.0,0.3608]
[1724961861451,0.01262838,59445.0,59440.0,0.3608]
[1724961861758,0.01262838,59450.0,59440.0,0.3608]
[1724961862352,0.6508,59441.0,59428.0,0.3608]
[1724961862567,0.304,59441.0,59433.0,0.3608]
[1724961862748,0.014,59441.0,59433.0,0.3608]
[1724961862949,0.014,59441.0,59440.0,0.001]
[1724961863556,0.03030163,59441.0,59440.0,0.002]
[1724961863752,0.084089,59446.0,59440.0,0.002]
[1724961864448,0.084089,59446.0,59440.0,0.1294]
[1724961864660,0.03047743,59446.0,59440.0,0.1294]
[1724961864855,0.3608,59448.0,59443.0,0.084092]
[1724961865058,0.03077751,59448.0,59447.0,0.3608]
[1724961865363,0.014,59450.0,59447.0,0.444887]
[1724961865566,0.04419554,59450.0,59449.0,0.3608]
[1724961865755,0.00025252,59451.0,59449.0,0.444884]
[1724961866058,0.00025252,59451.0,59450.0,0.084083]
[1724961866959,0.03056931,59451.0,59450.0,0.084083]